bitfinex-derivatives/quotes_ETHF0:USTF0_20250507
["timestamp","ask_amount","ask_price","bid_price","bid_amount"]
[1746623706217,4.30314,1826.0,1825.9,5.3374]
[1746623707215,5.90074,1826.0,1825.9,5.3374]
[1746623711322,49.66854,1826.0,1825.9,3.6]
[1746623715825,53.94054,1826.0,1825.9,3.6]
[1746623717126,1.09558,1825.6,1825.5,0.8313]
[1746623717328,4.30338,1825.6,1825.5,0.8313]
[1746623717722,6.00188,1825.6,1825.5,0.8313]
[1746623718133,6.00188,1825.6,1825.5,4.4313]
[1746623721231,6.00188,1825.6,1825.5,3.6]
[1746623721432,49.76968,1825.6,1825.5,3.6]
[1746623722432,54.76968,1825.6,1825.5,3.6]
[1746623722625,54.76968,1825.6,1825.5,1.16464]
[1746623722831,1.09582,1825.2,1825.1,7.29561197]
[1746623723127,48.07142,1825.2,1825.1,7.29561197]
[1746623723527,5.97802,1825.2,1825.1,7.29561197]
[1746623723733,5.97802,1825.2,1825.1,9.86841197]
[1746623724228,5.97802,1825.2,1825.1,2.5728]
[1746623724627,4.8822,1825.2,1825.1,2.5728]
[1746623724830,3.2078,1825.2,1825.1,2.5728]
[1746623725030,4.30362,1825.2,1825.1,2.5728]
[1746623725724,3.2078,1825.2,1825.1,3.66868]
[1746623726033,4.30362,1825.2,1825.1,2.5728]
[1746623729132,4.30362,1825.2,1825.1,3.66868]
[1746623729333,3.2078,1825.2,1825.1,3.66868]
[1746623731138,4.30362,1825.2,1825.1,3.66868]
[1746623731845,3.2078,1825.2,1825.1,3.66868]
[1746623732743,3.2078,1825.2,1825.1,8.66868]
[1746623733540,3.2078,1825.2,1825.1,3.66868]
[1746623736643,4.30336,1825.7,1825.2,2.73956]
[1746623736947,2.76982,1825.9,1825.8,1.09546]
[1746623737147,2.76982,1825.9,1825.8,4.69546]
[1746623737148,3.64832,1825.9,1825.8,4.69546]
[1746623737346,1.09538,1826.0,1825.9,1.09534]
[1746623737651,34.5181,1826.0,1825.9,1.09534]
[1746623737950,34.5181,1826.0,1825.9,2.77404]
[1746623738144,34.5181,1826.0,1825.9,6.37404]
[1746623738342,1.6924,1826.0,1825.9,6.37404]
[1746623738543,4.30312,1826.1,1826.0,1.09534]
[1746623738743,36.0335,1826.1,1826.0,3.63534]
[1746623739042,3.2078,1826.1,1826.0,3.63534]
[1746623739340,1.6924,1826.2,1826.1,1.09528]
[1746623739650,8.57588,1826.5,1826.4,1.0951]
[1746623739841,10.22928,1826.5,1826.4,1.0951]
[1746623740043,53.99708,1826.5,1826.4,1.0951]
[1746623740239,53.99708,1826.5,1826.4,3.6]
[1746623741650,48.629,1826.5,1826.4,4.6951]
[1746623741952,34.4791,1826.5,1826.4,4.6951]
[1746623742551,34.4791,1826.5,1826.4,5.5415]
[1746623742853,3.2078,1826.6,1826.5,1.09504]
[1746623743052,14.1499,1826.6,1826.5,2.68684]
[1746623743249,46.9756,1826.6,1826.5,2.68684]
[1746623743450,48.5875,1826.6,1826.5,2.68684]
[1746623743750,4.8197,1826.6,1826.5,2.68684]
[1746623743953,4.8197,1826.6,1826.5,3.56994]
[1746623744255,4.8197,1826.6,1826.5,7.16994]
[1746623744557,5.91468,1826.6,1826.5,7.16994]
[1746623744856,4.8197,1826.6,1826.5,7.16994]
[1746623746355,3.2078,1826.6,1826.5,7.16994]
[1746623746552,1.6152,1826.8,1826.7,1.09492]
[1746623746857,1.6152,1826.8,1826.7,4.30272]
[1746623747057,1.97094,1827.0,1826.9,1.0948]
[1746623747262,3.58614,1827.0,1826.9,1.0948]
[1746623748159,3.58614,1827.0,1826.9,6.3979]
[1746623750458,2.4914,1827.0,1826.9,6.3979]
[1746623751757,2.4914,1827.0,1826.9,7.2053]
[1746623751963,1.96797,1827.2,1827.1,1.09468]
[1746623752164,14.67087,1827.2,1827.1,1.09468]
[1746623752363,47.49657,1827.2,1827.1,1.09468]
[1746623752857,1.09468,1827.1,1827.0,6.0311]
[1746623753051,1.09474,1827.0,1826.9,21.2]
[1746623753264,44.86254,1827.0,1826.9,18.6948]
[1746623753463,35.68124,1827.0,1826.9,18.6948]
[1746623753857,35.68124,1827.0,1826.9,1.0948]
[1746623754058,35.68124,1827.0,1826.9,4.6948]
[1746623755660,34.5865,1827.0,1826.9,4.6948]
[1746623755961,35.68124,1827.0,1826.9,4.6948]
[1746623756161,34.5865,1827.0,1826.9,4.6948]
[1746623756359,35.68124,1827.0,1826.9,4.6948]
[1746623756558,34.5865,1827.0,1826.9,4.6948]
[1746623756966,35.68124,1827.0,1826.9,4.6948]
[1746623757767,34.5865,1827.0,1826.9,4.6948]
[1746623759068,1.7608,1827.0,1826.9,4.6948]
[1746623760269,2.85554,1827.0,1826.9,4.6948]
[1746623760467,1.7608,1827.0,1826.9,4.6948]
[1746623760865,1.7608,1827.0,1826.9,7.1947]
[1746623762066,1.7608,1827.0,1826.9,4.6948]
[1746623762267,2.85554,1827.0,1826.9,4.6948]
[1746623762467,3.67254,1827.0,1826.9,4.6948]
[1746623762771,2.5778,1827.0,1826.9,4.6948]
[1746623762973,3.67254,1827.0,1826.9,4.6948]
[1746623764376,36.49824,1827.0,1826.9,4.6948]
[1746623765675,35.4035,1827.0,1826.9,4.6948]
[1746623766376,46.3456,1827.0,1826.9,4.6948]
[1746623766975,35.4035,1827.0,1826.9,4.6948]
[1746623767176,1.7608,1827.0,1826.9,4.6948]
[1746623767377,1.7608,1827.0,1826.9,7.199]
[1746623771179,1.7608,1827.0,1826.9,24.799]
[1746623771780,1.7608,1827.0,1826.9,25.50150665]
[1746623776380,1.7608,1827.0,1826.9,23.85090665]
[1746623777179,46.62334,1827.0,1826.9,4.30250665]
[1746623777373,54.83114,1827.0,1826.9,4.30250665]
[1746623778083,54.83114,1827.0,1826.9,3.6]
[1746623780180,46.62334,1827.0,1826.9,3.6]
[1746623782277,49.83114,1827.0,1826.9,3.6]
[1746623783279,1.09498,1826.6,1826.4,4.058]
[1746623783486,0.8796,1826.5,1826.4,5.1531]
[1746623783782,3.3923,1826.5,1826.4,22.7531]
[1746623784081,3.3923,1826.5,1826.4,26.3531]
[1746623805102,40.50414,1827.0,1826.9,18.0]
[1746623806100,40.50414,1827.0,1826.9,21.6]
[1746623807195,45.50414,1827.0,1826.9,21.6]
[1746623807391,56.44624,1827.0,1826.9,21.6]
[1746623808203,56.44624,1827.0,1826.9,3.6]
[1746623809704,51.44624,1827.0,1826.9,3.6]
[1746623810992,17.5258,1827.0,1826.9,4.6948]
[1746623811504,5.7844,1827.0,1826.9,4.6948]
[1746623811704,5.7844,1827.0,1826.9,7.2615]
[1746623811895,6.87914,1827.0,1826.9,7.2615]
[1746623812306,6.87914,1827.0,1826.9,5.5]
[1746623813805,5.7844,1827.0,1826.9,5.5]
[1746623814204,6.87914,1827.0,1826.9,5.5]
[1746623815198,6.87914,1827.0,1826.9,4.6948]
[1746623817407,6.87914,1827.0,1826.9,3.6]
[1746623817905,6.87914,1827.0,1826.9,4.6948]
[1746623820010,6.87914,1827.0,1826.9,3.6]
[1746623820307,50.64694,1827.0,1826.9,3.6]
[1746623821108,55.64694,1827.0,1826.9,0.7844]
[1746623821501,1.09504,1826.5,1826.4,3.2078]
[1746623821702,44.86284,1826.5,1826.4,3.2078]
[1746623821907,1.0951,1826.4,1826.3,18.69514]
[1746623822105,2.7506,1826.4,1826.3,18.69514]
[1746623822301,46.5184,1826.4,1826.3,21.2]
[1746623822904,46.5184,1826.4,1826.3,22.29516]
[1746623823209,45.4233,1826.4,1826.3,4.69516]
[1746623823611,1.6555,1826.4,1826.3,4.69516]
[1746623824106,2.73718,1826.8,1826.3,4.69516]
[1746623824107,5.94476,1827.0,1826.7,1.09487]
[1746623824302,45.3633,1826.8,1826.7,1.09492]
[1746623824905,3.2078,1827.0,1826.9,1.0948]
[1746623825104,4.8033,1827.0,1826.9,4.6948]
[1746623825304,5.89804,1827.0,1826.9,4.6948]
[1746623827214,5.89804,1827.0,1826.9,6.4376]
[1746623828207,16.84014,1827.0,1826.9,3.6]
[1746623828411,49.66584,1827.0,1826.9,3.6]
[1746623828613,54.66584,1827.0,1826.9,3.6]
[1746623828805,58.92784,1827.0,1826.9,3.6]
[1746623829206,1.09489,1826.8,1826.5,1.6647]
[1746623829413,60.57,1827.0,1826.5,1.6647]
[1746623829414,43.7678,1826.6,1826.5,2.75974]
[1746623829814,1.7551,1826.6,1826.5,2.75974]
[1746623830113,1.7551,1826.6,1826.5,6.35974]
[1746623830310,2.85008,1826.6,1826.5,3.6]
[1746623830515,46.61788,1826.6,1826.5,3.6]
[1746623830717,45.5229,1826.6,1826.5,4.69504]
[1746623830907,46.61788,1826.6,1826.5,4.69504]
[1746623832413,44.86278,1826.6,1826.5,4.69504]
[1746623832620,43.7678,1826.6,1826.5,4.69504]
[1746623832815,46.54868,1826.6,1826.5,3.6]
[1746623833413,46.54868,1826.6,1826.5,4.69504]
[1746623834220,46.54868,1826.6,1826.5,3.6]
[1746623834422,46.54868,1826.6,1826.5,4.69504]
[1746623835021,45.4537,1826.6,1826.5,4.69504]
[1746623835220,46.54868,1826.6,1826.5,4.69504]
[1746623835423,45.4537,1826.6,1826.5,4.69504]
[1746623835821,46.54868,1826.6,1826.5,4.69504]
[1746623836321,1.09488,1826.8,1826.7,1.09489]
[1746623836522,2.84378,1826.8,1826.7,1.09489]
[1746623836726,46.61158,1826.8,1826.7,1.09489]
[1746623837123,46.61158,1826.8,1826.7,4.69489]
[1746623837619,45.5167,1826.8,1826.7,4.69489]
[1746623838725,46.61156,1826.8,1826.7,3.6]
[1746623839927,46.61156,1826.8,1826.7,4.69492]
[1746623841522,45.5167,1826.8,1826.7,4.69492]
[1746623842022,13.78586,1826.8,1826.7,6.33912]
[1746623842422,13.78586,1826.8,1826.7,4.69492]
[1746623842928,46.61156,1826.8,1826.7,4.69492]
[1746623843329,2.84376,1826.8,1826.7,4.69492]
[1746623846426,1.7489,1826.8,1826.7,4.69492]
[1746623846622,2.84376,1826.8,1826.7,4.69492]
[1746623846822,2.84376,1826.8,1826.7,6.29482]
[1746623847117,1.7489,1826.8,1826.7,6.29482]
[1746623847327,1.7489,1826.8,1826.7,7.10632]
[1746623848129,0.878,1826.9,1826.7,7.10632]
[1746623848432,4.9322,1827.0,1826.9,1.0948]
[1746623848917,4.9322,1827.0,1826.9,3.54]
[1746623849119,4.9322,1827.0,1826.9,7.14]
[1746623849323,3.2078,1827.0,1826.9,7.14]
[1746623851027,4.30254,1827.0,1826.9,7.14]
[1746623851929,4.30254,1827.0,1826.9,4.6948]
[1746623853834,3.2078,1827.0,1826.9,4.6948]
[1746623854333,46.9756,1827.0,1826.9,4.6948]
[1746623854527,48.692,1827.0,1826.9,4.6948]
[1746623855128,4.9242,1827.0,1826.9,4.6948]
[1746623856231,3.2078,1827.0,1826.9,4.6948]
[1746623857937,4.30254,1827.0,1826.9,4.6948]
[1746623858236,6.03214,1827.0,1826.9,4.6948]
[1746623858535,38.85784,1827.0,1826.9,4.6948]
[1746623858739,49.79994,1827.0,1826.9,4.6948]
[1746623866935,49.79994,1827.0,1826.9,3.6]
[1746623867136,1.09496,1826.7,1826.6,1.09492]
[1746623867435,44.86278,1826.6,1826.5,12.00034586]
[1746623867637,46.56188,1826.6,1826.5,12.00034586]
[1746623868141,46.56188,1826.6,1826.5,10.90535586]
[1746623868535,46.56188,1826.6,1826.5,3.6]
[1746623870435,55.82088,1826.6,1826.5,3.6]
[1746623871137,1.0951,1826.4,1826.3,7.30535586]
[1746623871439,1.09519,1826.3,1826.2,1.09522]
[1746623871640,46.3564,1826.3,1825.9,14.02695586]
[1746623871840,44.86314,1826.1,1826.0,1.09534]
[1746623872043,43.7678,1826.1,1826.0,18.69534]
[1746623872241,3.62276,1826.2,1826.0,18.69534]
[1746623872439,46.57708,1826.1,1826.0,18.69534]
[1746623873942,46.57708,1826.1,1826.0,17.6]
[1746623874141,46.57708,1826.1,1826.0,21.2]
[1746623874543,45.4818,1826.1,1826.0,22.29534]
[1746623875044,46.57708,1826.1,1826.0,22.29534]
[1746623876039,45.4818,1826.1,1826.0,22.29534]
[1746623876238,46.57708,1826.1,1826.0,22.29534]
[1746623877347,46.57708,1826.1,1826.0,21.2]
[1746623878352,46.57708,1826.1,1826.0,22.29534]
[1746623879146,46.57708,1826.1,1826.0,21.2]
[1746623879349,46.57708,1826.1,1826.0,22.29534]
[1746623880442,45.4818,1826.1,1826.0,22.29534]
[1746623880644,46.57708,1826.1,1826.0,24.89684]
[1746623883252,46.57708,1826.1,1826.0,22.29534]
[1746623884154,46.57708,1826.1,1826.0,21.2]
[1746623884357,46.57708,1826.1,1826.0,3.6]
[1746623884860,46.57708,1826.1,1826.0,4.69534]
[1746623885056,0.8746,1826.3,1826.2,1.09522]
[1746623885352,1.96976,1826.3,1826.2,1.09522]
[1746623885760,1.96976,1826.3,1826.2,2.74842]
[1746623886161,1.96976,1826.3,1826.2,6.34842]
[1746623886465,0.8746,1826.3,1826.2,6.34842]
[1746623886764,5.0645,1826.5,1826.4,1.0951]
[1746623886955,6.15957,1826.5,1826.4,1.0951]
[1746623887153,45.66737,1826.5,1826.4,4.6951]
[1746623887565,45.66737,1826.5,1826.4,3.6]
[1746623887861,45.66737,1826.5,1826.4,4.6951]
[1746623888069,45.66737,1826.5,1826.4,6.4514]
[1746623888266,47.30147,1826.5,1826.4,6.4514]
[1746623888767,47.30147,1826.5,1826.4,5.3563]
[1746623889060,47.30147,1826.5,1826.4,6.4514]
[1746623889266,46.49697,1826.5,1826.4,6.4514]
[1746623889466,4.26,1826.7,1826.4,5.3563]
[1746623889765,43.7678,1826.6,1826.5,4.47414]
[1746623890265,1.09498,1826.6,1826.5,8.07414]
[1746623890462,2.79116,1826.7,1826.6,1.09498]
[1746623890661,2.79116,1826.7,1826.6,1.7]
[1746623890860,1.96647,1826.8,1826.7,1.09492]
[1746623891167,2.79103,1826.9,1826.8,1.09486]
[1746623891366,2.79103,1826.9,1826.7,3.6]
[1746623891367,44.86266,1826.8,1826.7,3.6]
[1746623891666,46.55886,1826.8,1826.7,3.6]
[1746623895165,51.55886,1826.8,1826.7,3.6]
[1746623896070,46.55886,1826.8,1826.7,3.6]
[1746623896261,1.0951,1826.4,1826.3,1.09513]
[1746623896561,44.8629,1826.4,1826.3,1.09513]
[1746623896868,1.0951,1826.4,1826.3,1.09513]
[1746623897168,1.0951,1826.4,1826.3,4.69513]
[1746623898866,1.0951,1826.4,1826.3,3.6]
[1746623899072,1.0951,1826.4,1826.3,4.69516]
[1746623899273,3.6065,1826.4,1826.3,4.69516]
[1746623900074,1.09508,1826.5,1826.4,1.09506]
[1746623900268,44.86288,1826.5,1826.4,3.59016]
[1746623900468,44.86288,1826.5,1826.4,4.39936]
[1746623900870,12.03718,1826.5,1826.4,4.39936]
[1746623901173,1.09508,1826.5,1826.4,7.99936]
[1746623901671,1.09508,1826.5,1826.4,6.9043]
[1746623902072,1.09508,1826.5,1826.4,6.0951]
[1746623902273,1.09508,1826.5,1826.4,7.1902]
[1746623902572,1.09508,1826.5,1826.4,3.6]
[1746623902873,44.86288,1826.5,1826.4,3.6]
[1746623911177,46.50118,1826.5,1826.4,3.6]
[1746623913177,46.50118,1826.5,1826.4,1.886]
[1746623913370,51.50118,1826.5,1826.4,1.886]
[1746623913571,46.50118,1826.5,1826.4,0.741]
[1746623914177,1.09528,1826.1,1826.0,18.4146]
[1746623914379,12.03738,1826.1,1826.0,0.8146]
[1746623914671,1.09528,1826.1,1826.0,0.8146]
[1746623915278,1.09528,1826.1,1826.0,6.0465]
[1746623917171,44.86308,1826.1,1826.0,2.4729]
[1746623917480,46.59088,1826.1,1826.0,1.28119]
[1746623917875,46.59088,1826.1,1826.0,1e-05]
[1746623918271,1.09552,1825.7,1825.6,24.90535586]
[1746623918673,44.86332,1825.7,1825.6,7.30535586]
[1746623918878,46.58942,1825.7,1825.6,7.30535586]
[1746623921268,45.4939,1825.7,1825.4,1.7029]
[1746623921572,44.86344,1825.5,1825.4,1.7029]
[1746623922073,3.71984,1825.5,1825.4,1.7029]
[1746623922376,47.48764,1825.5,1825.4,1.7029]
[1746623922578,2.73928,1825.4,1825.1,0.8235]
[1746623922876,1.09576,1825.3,1825.2,1.7029]
[1746623923076,46.46456,1825.3,1825.2,1.7029]
[1746623927379,1.09582,1825.2,1825.1,17.6]
[1746623927583,47.43782,1825.2,1825.1,17.6]
[1746623927883,1.09588,1825.1,1825.0,1.7626]
[1746623928186,1.09588,1825.1,1825.0,19.3626]
[1746623929583,1.09588,1825.1,1825.0,20.45854]
[1746623929882,1.09588,1825.1,1825.0,19.3626]
[1746623930581,1.09588,1825.1,1825.0,1.7626]
[1746623930985,2.84898,1825.1,1825.0,1.7626]
[1746623931582,46.61678,1825.1,1825.0,1.7626]
[1746623932083,47.49708,1825.1,1825.0,1.7626]
[1746623933982,47.49708,1825.1,1824.9,2.70919]
[1746623934188,44.86374,1825.0,1824.9,1.89599]
[1746623934377,46.58104,1825.0,1824.9,3.49969]
[1746623934581,2.81324,1825.0,1824.9,3.49969]
[1746623935393,1.7173,1825.0,1824.9,3.49969]
[1746623935784,5.1163,1825.2,1824.9,2.4037]
[1746623936091,5.3618,1825.3,1825.2,1.0958]
[1746623936483,49.1296,1825.3,1825.2,1.0958]
[1746623936691,1.09582,1825.2,1825.1,2.70733]
[1746623936891,43.7678,1825.2,1825.1,2.70733]
[1746623937090,7.0613,1825.3,1825.2,1.09582]
[1746623937290,7.0613,1825.3,1825.2,2.70732]
[1746623937489,46.5631,1825.3,1825.2,2.70732]
[1746623937797,58.63563,1825.9,1825.2,1.6115]
[1746623938089,43.7678,1825.7,1825.3,4.3508]
[1746623938287,1.09562,1825.6,1825.5,1.09562]
[1746623939191,32.8257,1825.6,1825.4,0.8682]
[1746623939394,43.7678,1825.6,1825.4,0.8682]
[1746623939686,44.86344,1825.6,1825.5,1.09564]
[1746623941692,1.09548,1825.8,1825.7,1.09546]
[1746623941893,44.86328,1825.8,1825.7,1.09546]
[1746623942796,0.863,1825.9,1825.8,1.09546]
[1746623942984,33.92114,1825.9,1825.8,1.09546]
[1746623944594,1.0955,1825.8,1825.7,1.09547]
[1746623944800,1.09555,1825.7,1825.6,1.09552]
[1746623945499,1.09552,1825.7,1825.6,1.09552]
[1746623945699,1.09545,1825.9,1825.8,1.0954]
[1746623945900,12.03755,1825.9,1825.8,1.0954]
[1746623946102,46.47595,1825.9,1825.8,1.0954]
[1746623946496,1.09551,1825.8,1825.7,1.09546]
[1746623946690,32.8257,1825.8,1825.7,1.09546]
[1746623946893,1.09545,1825.9,1825.8,1.09546]
[1746623947101,33.92115,1825.9,1825.8,1.09546]
[1746623947298,1.09552,1825.8,1825.7,1.09547]
[1746623947494,46.51092,1825.8,1825.7,1.09547]
[1746623947690,35.56882,1825.8,1825.7,1.09547]
[1746623949105,35.56882,1825.8,1825.6,2.73885]
[1746623949106,1.09561,1825.7,1825.6,1.09555]
[1746623949304,48.16871,1825.7,1825.6,1.09555]
[1746623949505,4.40091,1825.7,1825.6,1.09555]
[1746623949904,1.09558,1825.6,1825.5,1.0956]
[1746623950109,45.4154,1825.6,1825.5,1.8925]
[1746623950306,46.51098,1825.6,1825.5,1.8925]
[1746623950807,45.4154,1825.6,1825.5,1.8925]
[1746623951007,46.51098,1825.6,1825.5,1.8925]
[1746623953207,46.51098,1825.6,1825.5,1.0956]
[1746623953801,45.4154,1825.6,1825.5,1.0956]
[1746623953996,45.4154,1825.6,1825.5,2.7558]
[1746623954200,46.51098,1825.6,1825.5,2.7558]
[1746623954401,2.75324,1825.7,1825.6,1.09558]
[1746623954603,4.37624,1825.7,1825.6,1.09558]
[1746623954802,48.14404,1825.7,1825.6,1.09558]
[1746623956305,1.09558,1825.6,1825.5,2.75579]
[1746623956611,46.48638,1825.6,1825.5,2.75579]
[1746623956911,2.71858,1825.6,1825.5,2.75579]
[1746623959112,1.623,1825.6,1825.5,2.75579]
[1746623959314,2.75327,1825.7,1825.6,1.09558]
[1746623959500,15.45187,1825.7,1825.6,1.09558]
[1746623959704,48.27757,1825.7,1825.6,1.09558]
[1746623962211,15.45187,1825.7,1825.6,1.09558]
[1746623962404,48.27757,1825.7,1825.6,2.83648]
[1746623964011,48.27757,1825.7,1825.6,1.7409]
[1746623964209,1.09558,1825.6,1825.5,1.09561]
[1746623964510,46.53128,1825.6,1825.5,1.09561]
[1746623964708,2.76348,1825.6,1825.5,1.09561]
[1746623965207,1.09564,1825.5,1825.4,1.5911]
[1746623965412,46.53134,1825.5,1825.4,2.68678]
[1746623965609,2.76354,1825.5,1825.4,2.68678]
[1746623970720,35.58924,1825.5,1825.4,2.68678]
[1746623971110,1.09576,1825.4,1825.3,1.09574]
[1746623971312,37.35446,1825.4,1825.3,1.09574]
[1746623971512,4.52876,1825.4,1825.3,1.09574]
[1746623971714,4.52876,1825.4,1825.3,2.70254]
[1746623972114,1.09576,1825.4,1825.3,2.70254]
[1746623974717,1.09576,1825.4,1825.3,1.6068]
[1746623974916,2.68976,1825.4,1825.3,1.6068]
[1746623975221,1.09582,1825.2,1825.1,6.15715]
[1746623975919,1.09582,1825.2,1825.1,7.90755]
[1746623976121,2.68982,1825.2,1825.1,1.7504]
[1746623976518,46.45762,1825.2,1825.1,1.7504]
[1746623976718,1.09594,1825.0,1824.9,1.7504]
[1746623976917,44.86374,1825.0,1824.9,1.7504]
[1746623977126,1.096,1824.9,1824.8,8.13135586]
[1746623977315,47.2642,1824.9,1824.8,7.30535586]
[1746623977622,3.4964,1824.9,1824.8,7.30535586]
[1746623977810,36.3221,1824.9,1824.8,7.30535586]
[1746623979122,1.09606,1824.8,1824.7,24.48028]
[1746623979325,2.74816,1824.8,1824.7,24.48028]
[1746623980320,1.09606,1824.8,1824.7,24.48028]
[1746623982527,1.09606,1824.8,1824.7,23.3842]
[1746623982722,1.09606,1824.8,1824.7,24.48032]
[1746623982921,2.79466,1824.8,1824.7,24.48032]
[1746623983325,35.62036,1824.8,1824.7,23.3842]
[1746623983525,35.62036,1824.8,1824.7,24.48032]
[1746623986427,34.5243,1824.8,1824.7,24.48032]
[1746623986729,35.62036,1824.8,1824.7,24.48032]
[1746623987934,35.62036,1824.8,1824.7,21.90392]
[1746623988325,44.86386,1824.8,1824.7,3.2078]
[1746623988634,1.09618,1824.7,1824.6,1.09612]
[1746623988825,1.09618,1824.7,1824.6,20.41012]
[1746623989332,1.09592,1825.1,1824.8,1.09606]
[1746623989529,43.7678,1825.0,1824.9,5.1481]
[1746623989728,32.8257,1825.1,1825.0,1.09594]
[1746623989929,32.8257,1825.1,1825.0,3.55314]
[1746623990131,2.74767,1825.2,1825.1,1.09588]
[1746623990329,12.5939,1825.2,1825.1,2.73158]
[1746623990532,43.7678,1825.2,1825.1,2.73158]
[1746623991129,44.86362,1825.2,1825.1,2.73158]
[1746623993527,46.48702,1825.2,1825.1,2.73158]
[1746623995535,46.48702,1825.2,1825.1,1.09588]
[1746624000335,45.3912,1825.2,1825.1,1.09588]
[1746624000541,43.7678,1825.2,1825.1,1.09588]
[1746624001333,3.4729,1825.3,1825.2,1.09582]
[1746624001534,47.2407,1825.3,1825.2,3.61992]
[1746624001840,48.33646,1825.3,1825.2,3.61992]
[1746624002138,48.33646,1825.3,1825.2,1.09582]
[1746624002938,1.09588,1825.2,1825.1,1.09583]
[1746624003237,2.86088,1825.2,1825.1,1.09583]
[1746624003439,46.62868,1825.2,1825.1,1.09583]
[1746624005742,45.5328,1825.2,1825.1,4.30363]
[1746624005937,2.73911,1825.5,1825.2,1.09582]
[1746624006241,43.7678,1825.3,1825.2,3.60832]
[1746624006539,43.7678,1825.3,1825.2,4.40762]
[1746624007240,1.7429,1825.4,1825.3,1.09576]
[1746624007440,32.8257,1825.4,1825.3,5.95246]
[1746624007742,1.7381,1825.5,1825.4,1.0957]
[1746624007943,1.7381,1825.5,1825.4,2.7446]
[1746624008242,47.2145,1825.5,1825.4,2.7446]
[1746624009035,1.95994,1825.5,1825.4,2.7446]
[1746624009342,45.72774,1825.5,1825.4,1.0957]
[1746624009843,47.43634,1825.5,1825.4,1.0957]
[1746624011541,46.3407,1825.5,1825.4,1.0957]
[1746624012045,46.3407,1825.5,1825.4,2.7525]
[1746624012948,35.3986,1825.5,1825.4,2.7525]
[1746624014042,36.49424,1825.5,1825.4,2.7525]
[1746624014247,36.49424,1825.5,1825.4,1.0957]
[1746624014248,47.43634,1825.5,1825.4,1.0957]
[1746624014449,1.0957,1825.4,1825.3,4.30352]
[1746624014650,46.5092,1825.4,1825.3,4.30352]
[1746624015147,45.4135,1825.4,1825.3,4.30352]
[1746624015349,46.5092,1825.4,1825.3,4.30352]
[1746624015643,45.4135,1825.4,1825.1,5.94747]
[1746624015844,3.5378,1825.3,1825.2,1.09577]
[1746624016346,46.2098,1825.3,1825.2,1.09577]
[1746624017050,46.2098,1825.3,1825.2,2.84817]
[1746624018245,47.30556,1825.3,1825.2,1.09577]
[1746624018553,46.2098,1825.3,1825.2,1.09577]
[1746624019054,46.2098,1825.3,1825.2,2.86107]
[1746624019948,47.30556,1825.3,1825.2,2.86107]
[1746624020349,36.36346,1825.3,1825.2,2.86107]
[1746624020546,47.30556,1825.3,1825.2,2.86107]
[1746624023957,47.30556,1825.3,1825.2,1.09577]
[1746624024645,44.86356,1825.3,1825.2,1.09577]
[1746624024847,43.7678,1825.3,1825.2,2.72127]
[1746624025855,46.50916,1825.3,1825.2,2.72127]
[1746624026255,45.4134,1825.3,1825.2,2.72127]
[1746624026647,1.6456,1825.3,1825.2,2.72127]
[1746624028246,46.50916,1825.3,1825.2,1.09577]
[1746624029654,44.86356,1825.3,1825.2,1.09577]
[1746624029954,46.56936,1825.3,1825.2,1.09577]
[1746624030355,44.86356,1825.3,1825.2,1.09577]
[1746624030556,46.56936,1825.3,1825.2,1.09577]
[1746624030951,44.86356,1825.3,1825.2,1.09577]
[1746624031151,1.09582,1825.2,1825.1,2.69403]
[1746624031357,44.86362,1825.2,1825.1,2.69403]
[1746624031552,35.62732,1825.2,1825.1,2.69403]
[1746624032351,33.92152,1825.2,1825.1,2.69403]
[1746624032749,2.83525,1825.4,1825.3,1.09576]
[1746624032950,35.66095,1825.4,1825.3,1.09576]
[1746624033260,1.7395,1825.4,1825.3,2.75726]
[1746624033556,2.77829,1825.5,1825.4,1.0957]
[1746624033755,2.77829,1825.5,1825.4,2.7572]
[1746624034055,46.54609,1825.5,1825.4,2.7572]
[1746624036560,45.4504,1825.5,1825.4,2.7572]
[1746624036747,34.5083,1825.5,1825.4,2.7572]
[1746624036948,1.6826,1825.5,1825.4,5.965]
[1746624037358,2.82739,1825.6,1825.5,1.09564]
[1746624037664,13.76949,1825.6,1825.5,2.83984]
[1746624037953,46.59519,1825.6,1825.5,2.83984]
[1746624038960,45.4996,1825.6,1825.5,2.83984]
[1746624039162,46.59518,1825.6,1825.5,2.83984]
[1746624041854,46.59518,1825.6,1825.5,1.09564]
[1746624042260,1.09564,1825.5,1825.4,1.09566]
[1746624042459,46.62164,1825.5,1825.4,1.09566]
[1746624043463,45.526,1825.5,1825.4,1.09566]
[1746624044163,46.62164,1825.5,1825.4,1.09566]
[1746624044957,1.0957,1825.4,1825.3,1.09572]
[1746624045156,46.4786,1825.4,1825.3,1.09572]
[1746624048165,45.3829,1825.4,1825.3,1.09572]
[1746624048469,46.4786,1825.4,1825.3,1.09572]
[1746624049471,45.3829,1825.4,1825.3,1.09572]
[1746624049668,45.3829,1825.4,1825.3,2.86122]
[1746624049862,46.4786,1825.4,1825.3,2.86122]
[1746624054471,46.4786,1825.4,1825.3,1.09572]
[1746624056872,13.6529,1825.4,1825.3,1.09572]
[1746624057068,46.4786,1825.4,1825.3,1.09572]
[1746624057370,45.3829,1825.4,1825.3,1.09572]